lending/lending_fUSD_20250315
["ID","MTS","AMOUNT","RATE_DAILY","PERIOD"]
[356212888,1742077840837,-2251.50289249,0.00031148,2]
[356212890,1742077840846,-3247.01705268,0.00031209,2]
[356212892,1742077840855,-171.20497,0.0003208,49]
[356212894,1742077840865,-584.38,0.00032226,2]
[356212896,1742077840875,-2251.50289249,0.00032516,2]
[356212898,1742077840884,-3985.17888681,0.00032636,2]
[356212900,1742077840894,-3247.01705268,0.00032638,2]
[356212902,1742077840904,-270.42,0.00032646,2]
[356212904,1742077840913,-433.17,0.00032646,2]
[356212906,1742077840923,-155.13,0.0003265,2]
[356212908,1742077840931,-160.49,0.00032688,2]
[356212910,1742077840941,-689.62,0.00033068,2]
[356212912,1742077840951,-300.0,0.00033068,2]
[356212914,1742077840960,-881.7,0.00033068,2]
[356212916,1742077840970,-150.0,0.00033068,2]
[356212918,1742077840979,-412.5,0.00033068,2]
[356212920,1742077840988,-151.44,0.00033068,2]
[356212922,1742077840998,-1000.0,0.00033133,2]
[356212924,1742077841007,-156.56,0.00033208,2]
[356212926,1742077841017,-2794.79770612,0.0003339,5]
[356212928,1742077841026,-305.55625196,0.000334,2]
[356212930,1742077841035,-156.56,0.00033445,2]
[356212932,1742077841044,-11955.5366604,0.0003348,2]
[356212934,1742077841053,-3985.17888681,0.0003349,2]
[356212936,1742077841062,-461.95,0.000335,31]
[356212938,1742077841072,-461.95,0.000335,31]
[356212940,1742077841080,-461.95,0.000335,31]
[356212942,1742077841090,-461.95,0.000335,31]
[356212944,1742077841099,-461.95,0.000335,31]
[356212946,1742077841109,-461.95,0.000335,31]
[356212948,1742077841118,-461.95,0.000335,31]
[356212950,1742077841128,-461.95,0.000335,31]
[356212952,1742077841137,-461.95,0.000335,31]
[356212954,1742077841147,-461.95,0.000335,31]
[356212956,1742077841156,-461.95,0.000335,31]
[356212958,1742077841165,-461.95,0.000335,31]
[356212960,1742077841174,-156.56,0.00033683,2]
[356212962,1742077841184,-2251.50289249,0.00033884,2]
[356212964,1742077841196,-156.56,0.0003392,2]
[356212966,1742077841205,-3247.01705268,0.00034066,2]
[356212968,1742077841215,-156.56,0.00034157,2]
[356212970,1742077841224,-166.66,0.00034389,2]
[356212972,1742077841234,-156.56,0.00034394,2]
[356212974,1742077841244,-584.38,0.0003449,2]
[356212998,1742077841468,-200.0,0.000345,7]
[356213000,1742077841484,-150.0,0.00034548,10]
[356213002,1742077841494,-156.56,0.00034631,2]
[356213004,1742077841503,-150.0,0.00034675,30]
[356213006,1742077841513,-258.38576083,0.00034675,30]
[356213008,1742077841523,-3985.17888681,0.0003469,2]
[356213010,1742077841532,-461.95,0.000347,31]
[356213012,1742077841541,-461.95,0.000347,31]
[356213014,1742077841550,-461.95,0.000347,31]
[356213016,1742077841560,-461.95,0.000347,31]
[356213018,1742077841569,-461.95,0.000347,31]
[356213020,1742077841579,-461.95,0.000347,31]
[356213022,1742077841588,-461.95,0.000347,31]
[356213024,1742077841597,-461.95,0.000347,31]
[356213026,1742077841606,-461.95,0.000347,31]
[356213028,1742077841615,-461.95,0.000347,31]
[356213030,1742077841624,-461.95,0.000347,31]
[356213032,1742077841633,-461.95,0.000347,31]
[356213034,1742077841642,-461.95,0.000347,31]
[356213036,1742077841652,-461.95,0.000347,31]
[356213038,1742077841662,-461.95,0.000347,31]
[356213039,1742077841672,-461.95,0.000347,31]
[356213041,1742077841682,-461.95,0.000347,31]
[356213043,1742077841691,-461.95,0.000347,31]
[356213045,1742077841701,-461.95,0.000347,31]
[356213047,1742077841710,-461.95,0.000347,31]
[356213049,1742077841720,-461.95,0.000347,31]
[356213051,1742077841729,-461.95,0.000347,31]
[356213053,1742077841738,-461.95,0.000347,31]
[356213055,1742077841747,-461.95,0.000347,31]
[356213057,1742077841757,-310.05601573,0.00034745,120]
[356213059,1742077841766,-156.56,0.00034869,2]
[356213061,1742077841775,-3985.17888681,0.00034922,2]
[356213063,1742077841785,-155.82229396,0.00034932,30]
[356213065,1742077841794,-7970.35777362,0.0003498,2]
[356213067,1742077841804,-15940.7155472,0.0003499,2]
[356213069,1742077841812,-711.0,0.00035,120]
[356213071,1742077841821,-206.20225763,0.00035,120]
[356213073,1742077841831,-10735.69339161,0.00035,30]
[356213075,1742077841839,-21408.4509815,0.00035,15]
[356213077,1742077841848,-155.82229396,0.00035178,30]
[356213079,1742077841859,-3985.17888681,0.00035242,2]
[356213081,1742077841868,-2251.50289249,0.00035252,2]
[356213083,1742077841877,-155.82229396,0.00035397,30]
[356213085,1742077841886,-3247.01705268,0.00035495,2]
[356213087,1742077841896,-155.82229396,0.00035644,30]
[356213089,1742077841905,-3985.17888681,0.0003579,2]
[356213091,1742077841914,-461.95,0.000358,31]
[356213093,1742077841923,-461.95,0.000358,31]
[356213095,1742077841933,-461.95,0.000358,31]
[356213096,1742077841942,-461.95,0.000358,31]
[356213098,1742077841951,-461.95,0.000358,31]
[356213101,1742077841961,-461.95,0.000358,31]
[356213102,1742077841970,-461.95,0.000358,31]
[356213104,1742077841981,-461.95,0.000358,31]
[356213106,1742077841990,-461.95,0.000358,31]
[356213108,1742077842000,-461.95,0.000358,31]
[356213110,1742077842010,-461.95,0.000358,31]
[356213112,1742077842019,-461.95,0.000358,31]
[356213114,1742077842029,-461.95,0.000358,31]
[356213116,1742077842039,-461.95,0.000358,31]
[356213118,1742077842048,-461.95,0.000358,31]
[356213120,1742077842058,-461.95,0.000358,31]
[356213123,1742077842067,-461.95,0.000358,31]
[356213124,1742077842077,-461.95,0.000358,31]
[356213126,1742077842087,-461.95,0.000358,31]
[356213128,1742077842096,-461.95,0.000358,31]
[356213131,1742077842106,-461.95,0.000358,31]
[356213133,1742077842116,-461.95,0.000358,31]
[356213135,1742077842125,-461.95,0.000358,31]
[356213136,1742077842135,-461.95,0.000358,31]
[356213138,1742077842144,-155.82229396,0.00035863,30]
[356213140,1742077842154,-155.82229395,0.00035863,30]
[356213142,1742077842163,-3985.17888681,0.0003596,2]
[356213145,1742077842173,-900.0,0.0003597,13]
[356213146,1742077842182,-900.0,0.0003597,13]
[356213149,1742077842197,-900.0,0.0003597,13]
[356213150,1742077842207,-345.78356329,0.0003597,13]
[356213153,1742077842217,-155.82229396,0.0003611,30]
[356213154,1742077842226,-214.665,0.00036189,2]
[356213157,1742077842237,-500.0,0.00036294,2]
[356213158,1742077842247,-155.82229396,0.00036329,30]
[356213161,1742077842257,-4833.05570105,0.00036522,2]
[356213163,1742077842269,-155.82229396,0.00036575,30]
[356213165,1742077842279,-2251.50289249,0.00036619,2]
[356213167,1742077842290,-2161.17752997,0.00036665,2]
[356213168,1742077842299,-272.0,0.000367,2]
[356213170,1742077842309,-584.38,0.00036754,2]
[356213173,1742077842319,-155.82229396,0.00036795,30]
[356213175,1742077842328,-1000.0,0.00036814,2]
[356213177,1742077842338,-3985.17888681,0.00036875,3]
[356213179,1742077842347,-7970.35777362,0.0003688,3]
[356213180,1742077842356,-1097.0,0.00036885,20]
[356213182,1742077842366,-3985.17888681,0.0003689,3]
[356213184,1742077842377,-5000.0,0.000369,3]
[356213186,1742077842386,-3247.01705268,0.00036924,2]
[356213189,1742077842396,-1399.0,0.0003696,5]
[356213191,1742077842407,-11955.5366604,0.0003697,3]
[356213192,1742077842416,-151.07,0.0003697,2]
[356213194,1742077842425,-31881.4310945,0.0003698,3]
[356213196,1742077842435,-6976.25238616,0.0003698,3]
[356213198,1742077842445,-55792.5044153,0.0003699,3]
[356213200,1742077842454,-31393.1357377,0.0003699,3]
[356213202,1742077842463,-500.0,0.00037,7]
[356213204,1742077842472,-5004.33296463,0.00037,5]
[356213206,1742077842482,-100000.0,0.00037,10]
[356213208,1742077842492,-461.95,0.00037,31]
[356213209,1742077842502,-461.95,0.00037,31]
[356213210,1742077842512,-461.95,0.00037,31]
[356213211,1742077842521,-461.95,0.00037,31]
[356213212,1742077842531,-461.95,0.00037,31]
[356213213,1742077842540,-461.95,0.00037,31]
[356213214,1742077842550,-461.95,0.00037,31]
[356213215,1742077842560,-461.95,0.00037,31]
[356213216,1742077842569,-461.95,0.00037,31]
[356213217,1742077842579,-461.95,0.00037,31]
[356213218,1742077842589,-461.95,0.00037,31]
[356213219,1742077842599,-461.95,0.00037,31]
[356213220,1742077842609,-461.95,0.00037,31]
[356213221,1742077842618,-461.95,0.00037,31]
[356213222,1742077842628,-461.95,0.00037,31]
[356213223,1742077842638,-461.95,0.00037,31]
[356213224,1742077842647,-461.95,0.00037,31]
[356213225,1742077842657,-461.95,0.00037,31]
[356213226,1742077842667,-461.95,0.00037,31]
[356213227,1742077842677,-461.95,0.00037,31]
[356213228,1742077842686,-461.95,0.00037,31]
[356213229,1742077842695,-461.95,0.00037,31]
[356213230,1742077842705,-461.95,0.00037,31]
[356213231,1742077842714,-461.95,0.00037,31]
[356213232,1742077842723,-593.43,0.00037123,2]
[356213233,1742077842733,-3488.12619308,0.0003719,3]
[356213234,1742077842743,-211.01597356,0.000372,103]
[356213235,1742077842752,-211.01597356,0.000372,103]
[356213236,1742077842762,-211.01597356,0.000372,103]
[356213237,1742077842771,-1097.0,0.00037265,20]
[356213238,1742077842780,-200.0,0.0003745,7]
[356213239,1742077842790,-152.83,0.00037497,120]
[356213240,1742077842800,-157.031605,0.00037498,120]
[356213241,1742077842810,-3488.12619308,0.00037525,3]
[356213242,1742077842820,-6976.25238616,0.00037535,3]
[356213243,1742077842830,-3488.12619308,0.00037555,3]
[356213244,1742077842839,-150.0,0.00037565,30]
[356213245,1742077842849,-150.0,0.00037565,30]
[356213246,1742077842859,-150.0,0.00037565,30]
[356213247,1742077842868,-1301.17848014,0.00037565,30]
[356213248,1742077842878,-785.51244205,0.00037565,30]
[356213249,1742077842888,-1042.56693851,0.00037565,30]
[356213250,1742077842897,-150.0,0.00037565,30]
[356213251,1742077842907,-4332.40611639,0.00037565,30]
[356213252,1742077842917,-1700.0,0.000376,13]
[356213253,1742077842927,-1097.0,0.00037645,20]
[356213254,1742077842936,-150.0,0.00037658,2]
[356213255,1742077842946,-150.0,0.00037666,2]
[356213256,1742077842956,-150.0,0.00037666,2]
[356213257,1742077842970,-150.0,0.00037672,2]
[356213258,1742077842980,-150.0,0.00037686,2]
[356213259,1742077842990,-150.0,0.00037688,2]
[356213260,1742077843000,-150.0,0.0003769,2]
[356213261,1742077843010,-150.0,0.00037691,2]
[356213262,1742077843019,-150.0,0.00037696,2]
[356213263,1742077843028,-3400.0,0.000377,13]
[356213264,1742077843038,-1117.34,0.000377,3]
[356213265,1742077843048,-150.0,0.00037705,2]
[356213266,1742077843057,-150.0,0.00037706,2]
[356213267,1742077843067,-150.0,0.00037706,2]
[356213268,1742077843076,-150.0,0.00037707,2]
[356213269,1742077843086,-150.0,0.00037708,2]
[356213270,1742077843095,-150.0,0.00037712,2]
[356213271,1742077843105,-150.0,0.00037725,2]
[356213272,1742077843116,-150.0,0.00037736,2]
[356213273,1742077843125,-151.56021208,0.00037737,7]
[356213274,1742077843135,-150.0,0.00037738,2]
[356213275,1742077843144,-150.0,0.00037739,2]
[356213276,1742077843153,-150.0,0.00037745,2]
[356213277,1742077843163,-3488.12619308,0.0003775,3]
[356213278,1742077843172,-150.0,0.00037756,2]
[356213279,1742077843181,-150.0,0.0003776,2]
[356213280,1742077843195,-3488.12619308,0.0003776,3]
[356213281,1742077843204,-150.0,0.00037768,2]
[356213282,1742077843213,-150.0,0.00037771,2]
[356213283,1742077843223,-150.0,0.00037772,2]
[356213284,1742077843235,-150.0,0.0003778,2]
[356213285,1742077843244,-150.0,0.0003778,2]
[356213286,1742077843253,-150.0,0.00037782,2]
[356213287,1742077843262,-150.0,0.00037787,2]
[356213288,1742077843273,-150.0,0.00037787,2]
[356213289,1742077843283,-3488.12619308,0.0003779,3]
[356213290,1742077843292,-150.0,0.00037792,2]
[356213291,1742077843302,-150.0,0.00037798,2]
[356213292,1742077843311,-5200.0,0.000378,13]
[356213293,1742077843321,-150.0,0.00037813,2]
[356213294,1742077843330,-150.0,0.00037816,2]
[356213295,1742077843339,-150.0,0.00037816,2]
[356213296,1742077843349,-291.75663553,0.00037819,2]
[356213297,1742077843358,-150.0,0.0003782,2]
[356213298,1742077843367,-150.0,0.00037827,2]
[356213299,1742077843377,-3488.12619308,0.0003783,3]
[356213300,1742077843386,-150.0,0.00037833,2]
[356213301,1742077843395,-3488.12619308,0.00037835,3]
[356213302,1742077843405,-150.0,0.00037835,2]
[356213303,1742077843414,-150.0,0.00037835,2]
[356213305,1742077843423,-150.0,0.00037838,2]
[356213307,1742077843433,-150.0,0.00037845,2]
[356213309,1742077843443,-150.0,0.00037845,2]
[356213311,1742077843452,-150.0,0.00037845,2]
[356213313,1742077843460,-150.0,0.00037851,2]
[356213316,1742077843469,-150.0,0.00037851,2]
[356213318,1742077843478,-150.0,0.00037854,2]
[356213320,1742077843487,-150.0,0.00037855,2]
[356213322,1742077843496,-150.0,0.00037855,2]
[356213324,1742077843504,-150.0,0.0003786,2]
[356213325,1742077843513,-150.0,0.00037868,2]
[356213326,1742077843522,-150.0,0.00037869,2]
[356213327,1742077843531,-150.0,0.00037872,2]
[356213328,1742077843540,-150.0,0.00037876,2]
[356213329,1742077843549,-150.0,0.00037877,2]
[356213330,1742077843558,-150.0,0.00037884,2]
[356213331,1742077843567,-150.0,0.00037889,2]
[356213332,1742077843576,-304.43889588,0.0003789,2]
[356213333,1742077843585,-204.01749012,0.0003789,2]
[356213334,1742077843593,-150.0,0.00037893,2]
[356213335,1742077843602,-150.0,0.00037897,2]
[356213336,1742077843611,-150.0,0.00037899,2]
[356213337,1742077843620,-250.1503868,0.00037899,2]
[356213338,1742077843629,-605.7935,0.000379,10]
[356213339,1742077843639,-6900.0,0.000379,13]
[356213340,1742077843649,-150.0,0.00037905,2]
[356213341,1742077843658,-150.0,0.0003791,2]
[356213342,1742077843667,-150.0,0.00037915,2]
[356213343,1742077843677,-150.0,0.00037916,2]
[356213344,1742077843687,-150.0,0.00037917,2]
[356213345,1742077843696,-150.0,0.00037919,2]
[356213346,1742077843706,-6976.25238616,0.0003792,3]
[356213347,1742077843715,-150.0,0.00037921,7]
[356213348,1742077843725,-150.0,0.00037922,2]
[356213349,1742077843738,-150.0,0.00037924,2]
[356213350,1742077843748,-150.0,0.00037924,2]
[356213351,1742077843758,-565.07743824,0.00037926,7]
[356213352,1742077843767,-151.07,0.00037931,2]
[356213353,1742077843777,-17440.6309654,0.0003794,3]
[356213354,1742077843787,-150.0,0.00037958,2]
[356213355,1742077843796,-1835.0,0.00037973,120]
[356213356,1742077843805,-635.0885678,0.00037974,2]
[356213357,1742077843815,-66274.3976685,0.0003798,3]
[356213358,1742077843825,-2251.50289249,0.00037987,2]
[356213359,1742077843836,-500.0978,0.00037989,120]
[356213360,1742077843846,-342.58,0.00037989,2]
[356213362,1742077843855,-999.0,0.00037989,120]
[356213364,1742077843866,-150.5,0.0003799,120]
[356213365,1742077843875,-151.07,0.0003799,2]
[356213366,1742077843884,-151.07,0.0003799,2]
[356213367,1742077843893,-151.07,0.0003799,2]
[356213368,1742077843902,-500.0,0.00037999,7]
[356213369,1742077843911,-389613.14035038,0.00038,2]
[356213376,1742077846680,-1257.0,0.000367,5]
[356213377,1742077846690,-178103.30663902,0.00038,2]
[356213378,1742077846699,-358040.33487159,0.00038,2]
[356213379,1742077846713,-62726.0478808,0.00038,2]
[356213380,1742077846722,-1097.0,0.00038026,20]
[356213381,1742077846731,-461.95,0.000382,31]
[356213382,1742077846740,-461.95,0.000382,31]
[356213383,1742077846749,-461.95,0.000382,31]
[356213384,1742077846758,-461.95,0.000382,31]
[356213385,1742077846767,-461.95,0.000382,31]
[356213386,1742077846777,-461.95,0.000382,31]
[356213387,1742077846786,-461.95,0.000382,31]
[356213388,1742077846796,-461.95,0.000382,31]
[356213389,1742077846806,-461.95,0.000382,31]
[356213390,1742077846815,-461.95,0.000382,31]
[356213391,1742077846825,-461.95,0.000382,31]
[356213392,1742077846834,-461.95,0.000382,31]
[356213393,1742077846844,-461.95,0.000382,31]
[356213394,1742077846853,-461.95,0.000382,31]
[356213395,1742077846862,-461.95,0.000382,31]
[356213396,1742077846871,-461.95,0.000382,31]
[356213397,1742077846881,-500.0,0.00038273,7]
[356213398,1742077846891,-3247.01705268,0.00038353,2]
[356213399,1742077846900,-1097.0,0.00038406,20]
[356213400,1742077846909,-270.42,0.00038443,2]
[356213401,1742077846918,-433.17,0.00038443,2]
[356213402,1742077846928,-500.0,0.00038547,7]
[356213403,1742077846937,-1117.33,0.000387,4]
[356213404,1742077846947,-1097.0,0.00038786,20]
[356213405,1742077846956,-500.0,0.00038821,7]
[356213406,1742077846966,-150000.0,0.00039,30]
[356213407,1742077846976,-584.38,0.00039018,2]
[356213408,1742077846986,-500.0,0.00039095,7]
[356213409,1742077846995,-1097.0,0.00039166,20]
[356213410,1742077847005,-211.01597356,0.00039172,115]
[356213411,1742077847015,-2251.50289249,0.00039355,2]
[356213412,1742077847024,-342.58,0.00039359,2]
[356213413,1742077847034,-999.0,0.00039359,120]
[356213414,1742077847043,-500.0,0.00039369,7]
[356213415,1742077847053,-306.96,0.00039507,2]
[356213416,1742077847063,-500.0,0.00039643,7]
[356213417,1742077847072,-304.43889587,0.00039725,2]
[356213418,1742077847082,-3247.01705268,0.00039781,2]
[356213419,1742077847092,-1091.63,0.00039834,2]
[356213420,1742077847102,-505.48,0.00039917,7]
[356213421,1742077847112,-6000.0,0.0004,120]
[356213422,1742077847122,-663.93,0.0004,120]
[356213423,1742077847131,-172.72220325,0.00040438,7]
[356213424,1742077847140,-150.0,0.00040438,7]
[356213425,1742077847149,-150.0,0.00040438,7]
[356213426,1742077847159,-150.0,0.00040438,7]
[356213427,1742077847169,-150.0,0.00040438,7]
[356213428,1742077847178,-150.0,0.00040438,7]
[356213429,1742077847191,-172.72220325,0.00040483,7]
[356213430,1742077847201,-1000.0,0.00040496,2]
[356213431,1742077847211,-172.72220325,0.00040529,7]
[356213432,1742077847220,-150.0,0.00040538,7]
[356213433,1742077847231,-150.0,0.00040566,7]
[356213434,1742077847241,-172.72220325,0.00040574,7]
[356213435,1742077847250,-172.72220325,0.00040619,7]
[356213436,1742077847261,-150.0,0.00040638,7]
[356213437,1742077847271,-172.72220325,0.00040665,7]
[356213438,1742077847281,-150.0,0.00040695,7]
[356213439,1742077847290,-172.72220325,0.0004071,7]
[356213440,1742077847300,-150.0,0.00040719,7]
[356213441,1742077847309,-2251.50289249,0.00040723,15]
[356213442,1742077847319,-342.58,0.00040729,2]
[356213443,1742077847330,-999.0,0.00040729,120]
[356213444,1742077847339,-150.0,0.00040737,7]
[356213445,1742077847348,-172.72220325,0.00040756,7]
[356213446,1742077847358,-172.72220325,0.00040801,7]
[356213447,1742077847370,-150.0,0.00040823,7]
[356213448,1742077847380,-150.0,0.00040837,7]
[356213449,1742077847390,-172.72220325,0.00040846,7]
[356213450,1742077847399,-544.91432642,0.00040874,30]
[356213451,1742077847408,-172.72220325,0.00040892,7]
[356213452,1742077847418,-8700.0,0.000409,14]
[356213453,1742077847427,-172.72220325,0.00040937,7]
[356213454,1742077847437,-150.0,0.00040937,7]
[356213455,1742077847447,-150.0,0.00040951,7]
[356213456,1742077847457,-172.72220325,0.00040983,7]
[356213457,1742077847467,-151.07,0.0004099,2]
[356213458,1742077847476,-150.0,0.00041,7]
[356213459,1742077847485,-1000.0,0.00041,60]
[356213460,1742077847494,-50000.0,0.00041,30]
[356213461,1742077847507,-30000.0,0.00041,2]
[356213462,1742077847521,-806.34,0.00041,120]
[356213463,1742077847534,-300.05868,0.00041,2]
[356213464,1742077847547,-172.72220325,0.00041028,7]
[356213465,1742077847558,-150.0,0.00041037,7]
[356213466,1742077847569,-500.0,0.00041073,5]
[356213467,1742077847581,-172.72220325,0.00041073,7]
[356213468,1742077847594,-150.0,0.0004108,7]
[356213469,1742077847607,-156.627223,0.00041095,31]
[356213470,1742077847619,-150.961967,0.00041095,31]
[356213471,1742077847632,-150.961966,0.00041095,31]
[356213472,1742077847645,-156.627223,0.00041095,31]
[356213473,1742077847657,-1445.224251,0.00041095,31]
[356213474,1742077847668,-159.350474,0.00041095,31]
[356213475,1742077847679,-1770.160316,0.00041095,31]
[356213476,1742077847689,-500.0,0.00041095,31]
[356213477,1742077847701,-500.0,0.00041095,31]
[356213478,1742077847713,-500.0,0.00041095,31]
[356213479,1742077847725,-500.0,0.00041095,31]
[356213480,1742077847737,-500.0,0.00041095,31]
[356213481,1742077847750,-500.0,0.00041095,31]
[356213482,1742077847762,-500.0,0.00041095,31]
[356213483,1742077847774,-500.0,0.00041095,31]
[356213484,1742077847786,-500.0,0.00041095,31]
[356213485,1742077847798,-500.0,0.00041095,31]
[356213486,1742077847810,-500.0,0.00041095,31]
[356213487,1742077847823,-500.0,0.00041095,31]
[356213488,1742077847834,-500.0,0.00041095,31]
[356213489,1742077847845,-500.0,0.00041095,31]
[356213490,1742077847859,-500.0,0.00041095,31]
[356213491,1742077847871,-500.0,0.00041095,31]
[356213492,1742077847883,-500.0,0.00041095,31]
[356213493,1742077847894,-500.0,0.00041095,31]
[356213494,1742077847907,-500.0,0.00041095,31]
[356213495,1742077847919,-300.0,0.00041095,31]
[356213496,1742077847930,-500.0,0.00041095,31]
[356213497,1742077847943,-500.0,0.00041095,31]
[356213498,1742077847955,-500.0,0.00041095,31]
[356213499,1742077847969,-500.0,0.00041095,31]
[356213500,1742077847980,-500.0,0.00041095,16]
[356213501,1742077847993,-643.95963344,0.00041095,31]
[356213502,1742077848005,-301.94107012,0.00041095,31]
[356213503,1742077848016,-500.0,0.00041095,2]
[356213504,1742077848027,-500.0,0.00041095,31]
[356213505,1742077848038,-500.0,0.00041095,31]
[356213506,1742077848050,-294.15018157,0.00041095,31]
[356213507,1742077848063,-500.0,0.00041095,31]
[356213508,1742077848077,-301.44609531,0.00041095,31]
[356213509,1742077848089,-500.0,0.00041095,31]
[356213510,1742077848099,-593.42,0.00041095,31]
[356213511,1742077848110,-300.0,0.00041095,2]
[356213512,1742077848120,-263.02293385,0.00041095,31]
[356213513,1742077848132,-1145.51,0.00041095,31]
[356213514,1742077848143,-500.0,0.00041095,31]
[356213515,1742077848155,-500.0,0.00041095,31]
[356213516,1742077848166,-500.0,0.00041095,31]
[356213517,1742077848176,-500.0,0.00041095,31]
[356213518,1742077848189,-500.0,0.00041095,31]
[356213519,1742077848199,-500.0,0.00041095,31]
[356213520,1742077848210,-500.0,0.00041095,31]
[356213521,1742077848222,-500.0,0.00041095,14]
[356213522,1742077848234,-500.0,0.00041095,2]
[356213523,1742077848245,-1007.89,0.00041095,31]
[356213524,1742077848256,-500.0,0.00041095,31]
[356213525,1742077848268,-500.0,0.00041095,31]
[356213526,1742077848282,-500.0,0.00041095,31]
[356213527,1742077848293,-395.48562296,0.00041095,31]
[356213528,1742077848304,-500.0,0.00041095,31]
[356213529,1742077848322,-500.0,0.00041095,31]
[356213530,1742077848338,-516.8044011,0.00041095,31]
[356213531,1742077848349,-500.0,0.00041095,31]
[356213532,1742077848360,-1151.34,0.00041095,31]
[356213533,1742077848371,-500.0,0.00041095,31]
[356213534,1742077848382,-500.0,0.00041095,31]
[356213535,1742077848393,-500.0,0.00041095,31]
[356213536,1742077848405,-314.26,0.00041095,31]
[356213537,1742077848416,-500.0,0.00041095,31]
[356213538,1742077848427,-500.0,0.00041095,31]
[356213539,1742077848439,-500.0,0.00041095,31]
[356213540,1742077848450,-500.0,0.00041095,31]
[356213541,1742077848461,-387.82809463,0.00041095,31]
[356213542,1742077848472,-500.0,0.00041095,31]
[356213543,1742077848483,-500.0,0.00041095,31]
[356213544,1742077848493,-602.04,0.00041095,31]
[356213545,1742077848505,-240.59788689,0.00041095,31]
[356213546,1742077848516,-294.9743633,0.00041095,31]
[356213547,1742077848527,-500.0,0.00041095,31]
[356213548,1742077848539,-500.0,0.00041095,31]
[356213549,1742077848549,-510.18821502,0.00041095,31]
[356213550,1742077848561,-500.0,0.00041095,31]
[356213551,1742077848572,-500.0,0.00041095,31]
[356213552,1742077848582,-969.73,0.00041095,31]
[356213553,1742077848593,-500.0,0.00041095,31]
[356213554,1742077848604,-176.32639212,0.00041095,31]
[356213555,1742077848615,-500.0,0.00041095,31]
[356213556,1742077848627,-521.20607885,0.00041095,31]
[356213557,1742077848638,-500.0,0.00041095,31]
[356213558,1742077848650,-500.0,0.00041095,31]
[356213559,1742077848662,-1330.98,0.00041095,10]
[356213560,1742077848673,-519.85247319,0.00041095,31]
[356213561,1742077848684,-504.39407933,0.00041095,31]
[356213562,1742077848695,-674.0,0.00041095,31]
[356213563,1742077848706,-500.0,0.00041095,31]
[356213564,1742077848717,-500.0,0.00041095,31]
[356213565,1742077848728,-500.0,0.00041095,31]
[356213566,1742077848739,-500.0,0.00041095,31]
[356213567,1742077848750,-500.0,0.00041095,31]
[356213568,1742077848762,-500.0,0.00041095,31]
[356213569,1742077848773,-500.0,0.00041095,31]
[356213570,1742077848784,-500.0,0.00041095,31]
[356213571,1742077848795,-500.0,0.00041095,31]
[356213572,1742077848806,-500.0,0.00041095,31]
[356213573,1742077848817,-500.0,0.00041095,31]
[356213574,1742077848828,-501.75585751,0.00041095,31]
[356213575,1742077848839,-500.0,0.00041095,31]
[356213576,1742077848850,-502.60742928,0.00041095,31]